Cogmind - Beta 15 @@@ ROGUE MODE // 2025.06.22 @ 13:24:44 Player: Logdot Result: Self-destructed Performance ------------- Evolutions (1) 500 Regions Visited (2) 400 Robots Destroyed (30) 150 Value Destroyed (539) 539 Prototype IDs (0) 0 Alien Tech Used (0) 0 Bonus (0) 0 TOTAL SCORE: 1589 Bonus ------- None Cogmind --------- Core Integrity 400/400 Matter 231/300 Energy 100/100 System Corruption 0% Temperature Cool (0) Movement Walking (260) Ox2 Location -9/Materials Parts ------- > --- POWER (1) -------- (None) > --- PROPULSION (2) --- Aluminum Leg > --- UTILITY (3) ------ Heat Sink Large Storage Unit > --- WEAPON (3) ------- Light Assault Rifle > --- INVENTORY (15) --- Small Storage Unit Hardened Light Armor Plating Hardened Light Armor Plating Hardened Light Armor Plating Hardened Light Armor Plating Hacking Suite Grenade Launcher Mini Grenade Launcher Peak State ------------ > --- POWER ------------ Light Nuclear Core > --- PROPULSION ------- Aluminum Leg Aluminum Leg > --- UTILITY ---------- Small Storage Unit Improved Terrain Scanner > --- WEAPON ----------- Small Laser Assault Rifle > --- INVENTORY -------- Ion Engine Wheel Hardened Light Armor Plating Hardened Light Armor Plating Hardened Light Armor Plating Hardened Light Armor Plating Mini Grenade Launcher Mini Grenade Launcher [Rating: 12] Favorites ----------- Power Light Nuclear Core Engine Ion Engine Power Core Light Nuclear Core Propulsion Aluminum Leg Leg Aluminum Leg Utility Heat Sink Device Heat Sink Storage Small Storage Unit Weapon Assault Rifle Energy Gun Small Laser Ballistic Gun Assault Rifle Launcher Grenade Launcher Build | -11 -10 -9 ------- Run | Yrd Mat Mat Slots Evolved 2 | . . 2 Power . | . . . Propulsion . | . . . Utility 1 | . . 1 Weapon 1 | . . 1 Parts Attached 23 | 7 16 . Power 5 | 1 4 . Engine 3 | 1 2 . Core 2 | . 2 . Reactor . | . . . Propulsion 7 | 2 5 . Treads . | . . . Leg 7 | 2 5 . Wheel . | . . . Hover . | . . . Flight . | . . . Utility 4 | 2 2 . Device 2 | 1 1 . Storage 2 | 1 1 . Processor . | . . . Hackware . | . . . Protection . | . . . Artifact . | . . . Weapon 7 | 2 5 . Energy Gun 4 | 1 3 . Energy Cannon . | . . . Ballistic Gun 2 | 1 1 . Ballistic Cannon . | . . . Launcher 1 | . 1 . Special Weapon . | . . . Impact Weapon . | . . . Slashing Weapon . | . . . Piercing Weapon . | . . . Special Melee Weapon . | . . . Unidentified Prototypes . | . . . Parts Lost 5 | . 4 1 Power 1 | . . 1 Propulsion 1 | . 1 . Utility . | . . . Weapon 3 | . 3 . Highest Loss Streak 2 | . 2 1 To Critical Strikes . | . . . Average Backups 6 | . 8 8 Power . | . . . Propulsion . | . . . Utility 3 | . 4 6 Weapon 1 | . 1 2 Tool/Special . | . . . Unused Backups 8 | . 2 6 Power . | . . . Propulsion 1 | . 1 . Utility 5 | . . 5 Weapon 2 | . 1 1 Tool/Special . | . . . Average Slot Usage (%) 87 | . 90 53 Engine 3 | . 3 . Core 10 | . 10 9 Leg 25 | . 27 11 Device 13 | . 14 11 Storage 13 | . 14 11 Energy Gun 5 | . 5 . Ballistic Gun 13 | . 13 11 Peak Build Rating 12 | 9 12 8 Average Rating 8 | 7 9 7 On Entrance 5 | . 9 8 Naked Turns . | . . . Heaviest Build 30 | 14 30 27 Greatest Support 20 | 20 20 10 Greatest Overweight (x) 2 | . 2 2 Average Overweight (x) . | . . 2 Largest Inventory Capacity 15 | 8 15 15 Average Capacity 10 | 7 10 15 Most Carried 9 | 2 9 9 Average Carried 6 | . 8 8 Final Capacity 15 | 8 15 15 Final Carried 9 | 1 9 8 Class Distribution -------------------- 69% | Scavenger-Mutant 30% | Mutant Dominant Class ---------------- Scavenger-Mutant | -10/Materials Scavenger-Mutant | -9/Materials Resources | -11 -10 -9 ----------- Run | Yrd Mat Mat Matter Collected 648 | 339 309 . Remotely . | . . . Salvage Created 867 | 316 551 . Parts 67 | 27 40 . Haulers Intercepted . | . . . Recyclers Shooed 1 | . 1 . Parts Field Recycled . | . . . Retrieved Matter . | . . . Parts Self-Destructed . | . . . Prevented . | . . . Kills | -11 -10 -9 ------- Run | Yrd Mat Mat Combat Hostiles Destroyed 16 | . 16 . Guns 15 | . 15 . AOE 1 | . 1 . Classes Destroyed 7 | 3 4 . Worker 2 | 2 . . Tunneler 9 | 9 . . Recycler 1 | 1 . . Operator 1 | . 1 . Watcher 1 | . 1 . Swarmer 6 | . 6 . Grunt 10 | . 10 . Best Kill Streak 8 | 8 4 . Combat Bots Only 4 | . 4 . Max Kills in Single Turn 1 | 1 1 . Gunslinging . | . . . Exploded 1 | . 1 . Melee . | . . . Uniques/NPCs Destroyed . | . . . Combat | -11 -10 -9 -------- Run | Yrd Mat Mat Hostile Shots Fired 102 | . 98 4 Missed 31 | . 30 1 Hits 71 | . 68 3 Projectile 71 | . 68 3 Critical Strikes 3 | . 3 . Damage Taken 825 | . 780 45 Core 97 | . 97 . Absorbed by Shields . | . . . Core Remaining (%) 80 | 100 61 . Volleys Fired 97 | 23 74 . Largest 2 | 2 2 . Hottest 60 | 60 60 . Shots Fired 161 | 45 116 . Gun 158 | 45 113 . Cannon . | . . . Launcher 3 | . 3 . Special . | . . . Kinetic 94 | 23 71 . Thermal 64 | 22 42 . Explosive 3 | . 3 . Electromagnetic . | . . . Robot Hit Streak 10 | 10 9 . Robot Miss Streak 2 | 1 2 . Penetration Max . | . . . Secondary Targets 1 | . 1 . Max Gunslinging Chain 1 | . 1 . Shots Hit Robots 114 | 31 83 . Core Hits 43 | 13 30 . Critical Kills . | . . . Critical Parts Destroyed . | . . . Critical Strikes . | . . . Melee Attacks . | . . . Impact . | . . . Slashing . | . . . Piercing . | . . . Sneak Attacks . | . . . Combat Hostiles . | . . . Follow-up Attacks . | . . . Damage Inflicted 1391 | 358 1033 . Guns 1297 | 358 939 . Cannons . | . . . Explosions 94 | . 94 . Melee . | . . . Ramming . | . . . Kinetic 752 | 146 606 . Thermal 545 | 212 333 . Explosive 94 | . 94 . Electromagnetic . | . . . Impact . | . . . Slashing . | . . . Piercing . | . . . Highest Corruption . | . . . Average Corruption . | . . . Corruption Purged . | . . . Corruption Blocked . | . . . Overload Shots . | . . . Overflow Damage . | . . . Projectiles . | . . . Explosions . | . . . Melee . | . . . Knockbacks . | . . . Impact . | . . . Kinetic . | . . . Secondary . | . . . Self-Inflicted Damage 41 | . 41 . Shots 2 | . 2 . Rammed . | . . . Targets Rammed . | . . . Kicked . | . . . Crushed . | . . . Highest Temperature 150 | . 150 . Average Temperature 89 | . 89 . Received Heat Transfer 381 | . 363 18 Siege Activations . | . . . Martial Activations . | . . . Shielding Activations . | . . . Robots Disrupted . | . . . Combat Hostiles . | . . . Robots Corrupted . | . . . Combat Hostiles . | . . . Parts Fried . | . . . Impact Corruptions . | . . . Robots Melted . | . . . Combat Hostiles . | . . . Parts Melted . | . . . Heat Transferred 1225 | 475 750 . Parts Sabotaged . | . . . Parts Stolen . | . . . Parts Stripped . | . . . Power Chain Reactions . | . . . Alert | -11 -10 -9 ------- Run | Yrd Mat Mat Maximum Alert Level . | . . . Low Security (%) 100 | 100 100 100 Level 1 . | . . . Level 2 . | . . . Level 3 . | . . . Level 4 . | . . . Level 5 . | . . . High Security . | . . . Max Security . | . . . Peak Influence 114 | 10 114 16 Initial 16 | . . 16 Average 36 | 1 50 5 Influence Increases 537 | 60 472 5 Destroy 0b10 Robot/C 320 | . 320 . Destroy 0b10 Robot/NC 70 | 60 10 . Destroy Leader 52 | . 52 . Successful Hack 50 | . 45 5 Disable Machine 15 | . 15 . Lose Combat Pursuer 30 | . 30 . Influence Decreases 537 | 60 431 46 Entered New Map 25 | . . 25 Time Decay 472 | 60 391 21 Lost Part 40 | . 40 . Squads Dispatched 3 | . 2 1 Investigation 1 | . 1 . Extermination . | . . . Reinforcement 2 | . 1 1 Assault . | . . . Garrison . | . . . Intercept . | . . . Searches Triggered . | . . . Construction Impeded . | . . . Haulers Reinforced . | . . . Active Scanning Responses . | . . . Cargo Convoy Interrupts . | . . . Stealth | -11 -10 -9 --------- Run | Yrd Mat Mat Distress Signals 3 | . 2 1 Communications Jammed . | . . . Distress Signals . | . . . Times Spotted 25 | . 21 4 Peak Tracking Total 4 | . 4 4 Tactical Retreats 2 | . 2 . Traps | -11 -10 -9 ------- Run | Yrd Mat Mat Traps Triggered 1 | . 1 . Indirectly . | . . . Trap Hack Attempts . | . . . Triggered . | . . . Disarmed . | . . . Reprogrammed . | . . . Reused . | . . . Traps Extracted . | . . . Installed . | . . . Triggered . | . . . Machines | -11 -10 -9 ---------- Run | Yrd Mat Mat Machines Disabled 1 | . 1 . Max in Single Turn 1 | . 1 . Machines Repaired . | . . . Machines Dismantled . | . . . Machines Sabotaged . | . . . Overloaded Fab Kills . | . . . Hacking | -11 -10 -9 --------- Run | Yrd Mat Mat Machines Accessed 8 | . 7 1 Terminals 8 | . 7 1 Fabricators . | . . . Repair Stations . | . . . Recycling Units . | . . . Scanalyzers . | . . . Garrison Access . | . . . Total Hacks 19 | . 16 3 Successful 10 | . 8 2 Failed 9 | . 8 1 Catastrophic . | . . . Database Lockouts . | . . . Manual 18 | . 15 3 Terminals 19 | . 16 3 Fabricators . | . . . Repair Stations . | . . . Recycling Units . | . . . Scanalyzers . | . . . Garrison Access . | . . . Terminal Hacks 2 | . 2 . Robot Analysis 1 | . 1 . Branch Access Points 1 | . 1 . Fabricator Hacks . | . . . Repair Station Hacks . | . . . Recycling Unit Hacks . | . . . Scanalyzer . | . . . Garrison Access Hacks . | . . . Unauthorized Hacks 8 | . 6 2 Terminals 8 | . 6 2 Assimilate 1 | . . 1 Botnet 7 | . 6 1 Fabricators . | . . . Repair Stations . | . . . Recycling Units . | . . . Scanalyzers . | . . . Garrison Access . | . . . Data Cores Recovered . | . . . Used . | . . . Hacking Detections 3 | . 3 . Full Trace Events . | . . . Feedback Events . | . . . Feedback Blocked . | . . . Robot Schematics Acquired . | . . . Robots Built . | . . . Authchips . | . . . Time . | . . . Total Robot Build Rating . | . . . Part Schematics Acquired . | . . . Parts Built . | . . . Authchips . | . . . Time . | . . . Total Part Build Rating . | . . . Parts Repaired . | . . . Time . | . . . Parts Recycled . | . . . Recycled Matter . | . . . Retrieved Matter . | . . . Retrieved Components . | . . . Parts Scanalyzed . | . . . Part Schematics Acquired . | . . . Parts Damaged . | . . . Bothacking | -11 -10 -9 ------------ Run | Yrd Mat Mat Used RIF Installer . | . . . Robots Hacked . | . . . Non-combat . | . . . Combat . | . . . Robot Hacks Applied . | . . . Relay Couplers Released . | . . . Fabnet Peak Effective % . | . . . Robots Rewired . | . . . Allies Hacked . | . . . Hacks Repelled . | . . . Allies | -11 -10 -9 -------- Run | Yrd Mat Mat Total Allies . | . . . Largest Group . | . . . Highest-Rated Group . | . . . Highest-Rated Ally . | . . . Total Orders . | . . . Ally Attacks . | . . . Total Damage . | . . . Kills . | . . . Allies Corrupted . | . . . Allies Melted . | . . . Intel | -11 -10 -9 ------- Run | Yrd Mat Mat Active Infowar (turns) 294 | 179 115 . Terrain 294 | 179 115 . Robot Analysis Total 1 | . 1 . Derelict Logs Recovered . | . . . Drone Launches . | . . . Drone Recoveries . | . . . Exploration | -11 -10 -9 ------------- Run | Yrd Mat Mat Turns Passed 1585 | 354 1139 92 Spaces Moved 818 | 187 596 35 Core 3 | 3 . . Treads . | . . . Legs 815 | 184 596 35 Wheels . | . . . Hover . | . . . Flight . | . . . Fastest Speed 50 | 50 120 260 Average Speed 144 | 118 145 260 Slowest Speed 260 | 120 260 260 Overloaded Moves . | . . . Propulsion Burnouts . | . . . Robots Hopped . | . . . Potential Cave-ins . | . . . Cave-ins Triggered . | . . . Exploration Rate (%) 37 | 8 97 6 Regions Visited 2 Branch Regions . Pre-discovered Areas . | . . . Known Exits Taken . | . . . Unknown Exits Taken 2 | 1 1 . Scrap Searched . | . . . Spaces Dug . | . . . Terrain Destroyed . | . . . Melee . | . . . Projectile . | . . . AOE . | . . . Terrain Rammed . | . . . Walls Destroyed . | . . . Machines Disabled . | . . . Actions | -11 -10 -9 --------- Run | Yrd Mat Mat Total 1063 | 270 757 36 Wait 102 | 52 50 . Move 816 | 186 595 35 Hop . | . . . Pick Up 11 | 2 9 . Fast Attach 8 | 6 2 . Attach 2 | 1 1 . Detach 1 | . 1 . Swap 13 | . 13 . Drop 13 | . 12 1 Fire 97 | 23 74 . Melee . | . . . Ram . | . . . Kick . | . . . Crush . | . . . Escape Stasis . | . . . Rewire . | . . . Trap . | . . . Miscellaneous . | . . . Route ------- -11/Scrapyard -10/Materials (discovered 4 exits: *Mat x3 / *Min) -9/Materials History --------- Turn | Location | Event 11 | -11/Scrapyard | Discovered new exit (range 13) 355 | -11/Scrapyard | Entered Materials 356 | -10/Materials | Build established: Mutant 615 | -10/Materials | Identified exit to Mines 712 | -10/Materials | Discovered new exit (range 9) 755 | -10/Materials | Build established: Scavenger-Mutant 913 | -10/Materials | Discovered new exit (range 16) 1055 | -10/Materials | Derelicts attacked the area 1185 | -10/Materials | Discovered new exit (range 11) 1494 | -10/Materials | Entered another Materials area 1494 | -9/Materials | Evolved 2 slots: Utility x1, Weapon x1 1586 | -9/Materials | Self-destructed Last Messages --------------- 01471_ U-05 Engineer lays Concrete. PARAMETERS=UTILITY+1,WEAPON+1 LOCATION=UNKNOWN GOAL=ESCAPE 01522_ K-01 Serf collects debris. 01536_ Connecting with Terminal... 01536_ Current location identified: Materials >>Trojan(Assimilate) Trojan loaded successfully. Testing... System interface override in place. >>Trojan(Botnet) Trojan loaded successfully. Testing... Terminal linked with 0 systems. Awaiting botnet instructions. 01556_ ALERT: Hostiles spotted, dispatching reinforcements to Terminal M009. 01576_ Lgt. Nuclear Core destroyed. 01578_ Dropped Ion Engine. Map ----- +----------------------------------------------------+ | ?????????????????????????????????????????????????? | | ?????????????????????????????????????????????????? | | ?????????????????????????????????????????????????? | | ?????????????????????????????????????????????????? | | ?????????????????????????????????????????????????? | | ?????????????????????????????????????????????????? | | ?????????????????????????????????????????????????? | | ?????????????????????????????????????????????????? | | ?????????????????????????????????????????????????? | | ?????????????????????????????????????????????????? | | ????????????????????????? ?????????????????????? | | ????????????????????????? "???????????????????? | | ????????????????????????? ???????????????????? | | ????????????????????????? ???? ??????????????? | | ????????????????????????? "??? "??????????????? | | ????????????????????????? """ ""?????????????? | | ????????????????????????? """ """ ???????????? | | ????????????????????????# ????????????? | | ???## ###############?# ?????????????? | | ?? #?# ""?????????????? | | ?? #?# ""?????????????? | | ?? #?# %* """ =#?????????? | | ?????????######+### ### ** #?????????? | | ??????????????????# T## ** #?????????? | | ??????????????????# ### #?????????? | | ??????????????????# ###@ #?????????? | | ??????????????????# *Y ]]] l g ????????? | | ??????????????????# ]]] ????????? | | ??????????????????# ]] ?????????? | | ??????????????????# ###+##############?????????? | | ??????????????????# #??????????????????????????? | | ??????????????????# #??????????????????????????? | | ??????????????????# #??????????????????????????? | | ??????????????????# #??????????????????????????? | | ??????????????????# #??????????????????????????? | | ??????????????????# #??????????????????????????? | | ??????????????????# #??????????????????????????? | | ??????????????????# #??????????????????????????? | | ??????????????????# #??????????????????????????? | | ??????????????????# #??????????????????????????? | | ??????????????????#####??????????????????????????? | | ?????????????????????????????????????????????????? | | ?????????????????????????????????????????????????? | | ?????????????????????????????????????????????????? | | ?????????????????????????????????????????????????? | | ?????????????????????????????????????????????????? | | ?????????????????????????????????????????????????? | | ?????????????????????????????????????????????????? | | | | | +----------------------------------------------------+ Best States ------------- Heat Dissipation 38 Energy Generation 14 Energy Capacity 265 Matter Stores 300 Matter Capacity 300 Sight Range 16 Terrain Scan Range 16 Terrain Scan Density 10 Evasion (%) 55 Item Schematics ----------------- None Robot Schematics ------------------ None Fabricated ------------ Nothing Repaired ---------- Nothing Alien Tech Used ----------------- None Achievements -------------- None Challenges ------------ None Game ------ Seed ForceBlanketSuite Manual? 0 Play Time 00:20:08 Cumulative 22.1 hours Start 2025.06.22 @ 12:54:52 End 2025.06.22 @ 13:24:44 Sessions 1 Manual Loads 0 Difficulty Rogue Special Mode None Game No. 14 Rogue 14 Adventurer 0 Explorer 0 Win Type - Total 0 Types 0/0/0/0/0/0/0/0/0/0 Lore% 16 Gallery% 19 Achievement% 20 Wizard Run 0 Options --------- Layout 1 ASCII 0 Keyboard 1 Movement Arrows Keybinds 1 Fullscreen 2 Font 18/SmallcapsGlow Map View 51x43 Zoom Use 0% Tactical HUD 1 Map Filters NONE Filters LOW_CONTRAST(47,30,31) Steam 1 RUN: d0e38297-8507-4611-bba9-cc681e7f827b